bitfinex/quotes_ETHUSD_20230113
["timestamp","ask_amount","ask_price","bid_price","bid_amount"]
[1673646410485,0.066,1453.6,1453.5,3.43383009]
[1673646410713,6.87947,1453.6,1453.5,3.43383009]
[1673646410962,0.066,1453.6,1453.5,3.43383009]
[1673646411122,0.066,1453.7,1453.5,3.7838131]
[1673646411333,7.03792,1454.0,1453.6,5.93383009]
[1673646411582,7.03792,1454.0,1453.7,3.43383009]
[1673646411795,7.03792,1454.0,1453.8,3.43383009]
[1673646412011,13.91584,1454.0,1453.8,3.43383009]
[1673646412329,0.16,1454.0,1453.9,5.93383009]
[1673646412488,0.094,1454.0,1453.9,5.99983009]
[1673646413473,6.97157,1454.0,1453.9,0.066]
[1673646413687,6.97157,1454.0,1453.7,4.337]
[1673646413688,7.03757,1454.0,1453.7,0.066]
[1673646413862,7.03757,1454.0,1453.8,3.43383009]
[1673646414474,13.91514,1454.0,1453.8,3.43383009]
[1673646414718,13.91514,1454.0,1453.7,0.066]
[1673646414931,13.91514,1454.0,1453.4,17.1673]
[1673646415111,13.91514,1454.0,1453.7,3.43383009]
[1673646415457,14.62370401,1454.0,1453.6,0.066]
[1673646415630,14.62370401,1454.0,1453.4,17.1673]
[1673646415842,14.62370401,1454.0,1453.5,3.43383009]
[1673646416203,14.62370401,1454.0,1453.6,3.43383009]
[1673646416416,16.7530174,1454.0,1453.5,0.07007622]
[1673646416634,16.7530174,1454.0,1453.6,3.43383009]
[1673646416936,16.7530174,1454.0,1453.5,0.07007622]
[1673646416937,17.46158141,1454.0,1453.5,0.07007622]
[1673646417100,20.8954115,1454.0,1453.4,0.066]
[1673646417313,20.8954115,1454.0,1453.3,4.49659021]
[1673646417314,7.31054115,1453.9,1453.3,4.49659021]
[1673646417526,27.5156,1453.8,1453.3,7.9304203]
[1673646417794,21.41126401,1453.8,1453.4,3.43383009]
[1673646418009,19.67865112,1453.8,1453.5,3.43383009]
[1673646418164,19.67865112,1453.8,1453.6,3.43383009]
[1673646418589,19.67865112,1453.8,1453.5,0.066]
[1673646418813,19.67865112,1453.8,1453.4,0.0040765]
[1673646419026,19.67865112,1453.8,1453.4,3.43790659]
[1673646419471,22.33432723,1453.8,1453.4,0.0040765]
[1673646419853,26.47672133,1453.8,1453.3,4.49659021]
[1673646420103,26.47672133,1453.8,1453.2,0.066]
[1673646420104,27.51824,1453.6,1453.2,0.066]
[1673646420323,27.58424,1453.6,1453.1,5.64624259]
[1673646420536,20.64153,1453.4,1453.1,5.64624259]
[1673646420704,20.70753,1453.4,1453.1,5.64624259]
[1673646421114,20.70753,1453.4,1453.1,0.05]
[1673646421115,2.5,1453.3,1453.1,0.05]
[1673646421358,27.52544,1453.2,1453.1,0.004]
[1673646421574,27.52544,1453.2,1453.1,0.894]
[1673646421575,20.71008,1453.2,1453.1,0.894]
[1673646421787,0.066,1453.2,1453.1,4.27783009]
[1673646422001,6.88081,1453.4,1453.2,1.06493448]
[1673646422002,6.88097,1453.3,1453.2,1.06493448]
[1673646422218,13.82829,1453.3,1453.2,1.06493448]
[1673646422368,13.82829,1453.3,1453.2,3.60876457]
[1673646422746,13.82829,1453.3,1453.2,0.17493448]
[1673646422898,16.587276,1453.3,1453.2,4.48e-06]
[1673646423104,20.64549,1453.1,1453.0,14.84390381]
[1673646423316,27.59332,1453.1,1453.0,11.23020381]
[1673646423573,27.59332,1453.1,1453.0,7.24054381]
[1673646423741,30.602652,1453.1,1453.0,2.24054381]
[1673646423970,30.602652,1453.1,1453.0,2.17454381]
[1673646424783,27.59332,1453.1,1453.0,2.17454381]
[1673646425296,27.59332,1453.1,1453.0,3.81e-06]
[1673646425417,2.5,1453.0,1452.8,0.103006]
[1673646425627,2.5,1453.0,1452.8,0.037006]
[1673646425836,13.76556,1452.9,1452.8,0.037006]
[1673646426050,13.83156,1452.9,1452.8,3.47083609]
[1673646426493,13.83156,1452.9,1452.8,0.037006]
[1673646426711,6.94878,1452.9,1452.8,0.037006]
[1673646426916,13.83156,1452.9,1452.8,0.037006]
[1673646427125,2.5,1452.8,1452.5,16.53869236]
[1673646427370,2.5,1452.6,1452.5,0.064]
[1673646427668,2.5,1452.6,1452.3,0.03985455]
[1673646427669,18.583519,1452.6,1452.3,0.03985455]
[1673646427861,18.645519,1452.6,1452.3,0.03985455]
[1673646428203,18.649519,1452.6,1452.3,0.03985455]
[1673646428360,16.149519,1452.6,1452.0,26.61287921]
[1673646428572,14.32766805,1452.6,1452.0,26.61287921]
[1673646428786,13.8344,1452.6,1452.0,26.62668805]
[1673646429318,13.8344,1452.6,1452.0,10.03817921]
[1673646429319,1.994,1452.3,1452.0,10.03817921]
[1673646429521,1.994,1452.3,1452.0,0.002]
[1673646429522,20.6583,1452.2,1452.0,0.002]
[1673646429878,20.6583,1452.2,1451.6,16.7704]
[1673646429879,20.66184,1452.0,1451.6,16.7704]
[1673646430052,20.66184,1452.0,1451.7,2.5]
[1673646430053,20.72784,1452.0,1451.7,2.5]
[1673646430406,20.72784,1452.0,1451.5,2.326]
[1673646430407,27.61512,1452.0,1451.5,0.064]
[1673646430586,27.61512,1452.0,1451.5,3.33383009]
[1673646430587,29.687904,1452.0,1451.5,3.33383009]
[1673646430998,5.4687904,1451.9,1451.4,0.064]
[1673646431209,27.55292,1451.8,1451.2,16.7704]
[1673646431445,31.05275009,1451.8,1451.2,16.7704]
[1673646431783,27.55672,1451.6,1451.2,16.7704]
[1673646431939,27.55672,1451.6,1451.2,0.004]
[1673646431940,27.62272,1451.6,1451.2,0.004]
[1673646432141,27.62272,1451.6,1451.2,0.002]
[1673646432142,20.73354,1451.6,1451.2,0.002]
[1673646432397,27.62272,1451.6,1451.2,3.43583009]
[1673646432564,27.62272,1451.6,1451.1,0.11210857]
[1673646432822,27.55996,1451.4,1451.1,0.04105346]
[1673646433019,23.98043096,1451.4,1451.1,0.04105346]
[1673646433233,23.98043096,1451.4,1451.1,3.46e-06]
[1673646433447,24.68899497,1451.4,1451.1,3.46e-06]
[1673646433613,2.4688995,1451.3,1451.1,3.46e-06]
[1673646433822,4.01902497,1451.4,1451.1,3.43383355]
[1673646434043,13.77988,1451.4,1451.2,5.97368464]
[1673646434254,20.67587,1451.4,1451.2,0.04585455]
[1673646434506,20.73587,1451.4,1451.2,0.03985455]
[1673646434820,6.95589,1451.4,1451.3,3.43383009]
[1673646434979,0.066,1451.4,1451.3,3.78119855]
[1673646435183,7.29062,1451.5,1451.3,3.78119855]
[1673646435447,14.18024,1451.5,1451.4,3.43383009]
[1673646435666,14.18024,1451.5,1451.3,0.066]
[1673646435667,21.06986,1451.5,1451.3,0.066]
[1673646435818,21.06986,1451.5,1451.2,0.03985455]
[1673646435819,21.77842401,1451.5,1451.2,0.03985455]
[1673646436031,28.0081581,1451.5,1451.2,0.03985455]
[1673646436478,27.56148,1451.3,1451.2,0.03985455]
[1673646436705,27.62748,1451.3,1451.2,0.03985455]
[1673646437139,24.89301811,1451.3,1451.2,0.03985455]
[1673646437302,24.89301811,1451.3,1451.0,20.07147168]
[1673646437303,13.78168,1451.2,1451.0,20.07147168]
[1673646437514,13.84768,1451.2,1451.0,20.066]
[1673646438406,15.26480802,1451.2,1451.0,20.066]
[1673646438722,13.84768,1451.2,1451.0,20.066]
[1673646438945,13.84768,1451.2,1451.0,12.48853]
[1673646440042,13.84768,1451.2,1451.0,8.63333]
[1673646440363,20.4599739,1451.2,1450.8,0.05181704]
[1673646440575,20.4599739,1451.2,1450.7,1.8e-06]
[1673646440576,20.67537,1451.0,1450.7,1.8e-06]
[1673646440923,20.74137,1451.0,1450.7,1.8e-06]
[1673646441249,23.40229001,1451.0,1450.7,1.8e-06]
[1673646441614,20.74137,1451.0,1450.7,1.8e-06]
[1673646441820,6.95779,1451.0,1450.8,3.43383009]
[1673646442140,6.95779,1451.0,1450.7,0.0660018]
[1673646442468,13.84958,1451.0,1450.7,0.00779013]
[1673646442676,15.92367,1451.0,1450.7,1.8e-06]
[1673646442884,13.84958,1451.0,1450.7,1.8e-06]
[1673646443095,10.20298739,1451.0,1450.7,1.8e-06]
[1673646443515,13.63681748,1451.0,1450.7,1.8e-06]
[1673646443924,2.5,1450.9,1450.7,1.8e-06]
[1673646444140,27.57096,1450.8,1450.7,1.8e-06]
[1673646444345,27.63696,1450.8,1450.7,1.8e-06]
[1673646444599,20.74422,1450.8,1450.7,1.8e-06]
[1673646445439,20.74422,1450.8,1450.7,3.5000018]
[1673646445440,23.757908,1450.8,1450.7,3.5000018]
[1673646445655,23.757908,1450.8,1450.5,0.066]
[1673646445873,23.757908,1450.8,1450.3,0.04105346]
[1673646446391,23.757908,1450.8,1450.3,3.47488355]
[1673646446600,23.757908,1450.8,1450.3,0.04105346]
[1673646446763,20.68137,1450.6,1450.3,0.04105346]
[1673646446972,6.95979,1450.6,1450.4,3.43383009]
[1673646447175,13.85358,1450.6,1450.5,3.43383009]
[1673646447389,13.85358,1450.6,1450.5,1.23338301]
[1673646447610,13.85358,1450.6,1450.3,2.23605346]
[1673646447907,13.85358,1450.6,1450.3,3.47488355]
[1673646448071,20.74737,1450.6,1450.3,3.47488355]
[1673646448808,6.95979,1450.6,1450.4,3.43383009]
[1673646448969,13.85348,1450.6,1450.5,3.43383009]
[1673646449386,13.85348,1450.6,1450.4,0.066]
[1673646449627,13.85348,1450.6,1450.4,3.43383009]
[1673646449803,13.85348,1450.6,1450.4,3.78211249]
[1673646450272,13.85348,1450.6,1450.3,0.11499395]
[1673646450483,13.85348,1450.6,1450.3,3.48282404]
[1673646450692,13.85348,1450.6,1450.4,3.43383009]
[1673646450857,13.85348,1450.6,1450.3,0.11499395]
[1673646451069,13.85348,1450.6,1450.3,3.48282404]
[1673646451574,13.86142049,1450.6,1450.2,0.06535959]
[1673646451718,13.86142049,1450.6,1450.2,3.43383009]
[1673646451924,13.85338,1450.6,1450.3,3.43383009]
[1673646452141,11.18367798,1450.6,1450.4,3.43383009]
[1673646452484,0.066,1450.6,1450.5,3.43383009]
[1673646452698,6.89332,1450.7,1450.5,1.23338301]
[1673646452699,13.85294,1450.7,1450.5,1.23338301]
[1673646452859,6.95932,1450.7,1450.5,0.89]
[1673646453064,13.85294,1450.7,1450.5,0.89]
[1673646453699,6.95932,1450.7,1450.5,0.89]
[1673646454159,0.066,1450.7,1450.5,4.32383009]
[1673646454368,6.89158,1451.1,1450.7,0.05836973]
[1673646454700,0.066,1451.1,1450.8,3.43383009]
[1673646454860,13.78233,1451.2,1450.8,3.43383009]
[1673646454861,13.84833,1451.2,1450.8,3.43383009]
[1673646455073,6.95711,1451.2,1450.9,3.43383009]
[1673646455289,0.066,1451.2,1451.0,3.7772131]
[1673646455504,6.88965,1451.5,1451.1,3.43383009]
[1673646455505,6.88996,1451.4,1451.1,3.43383009]
[1673646455863,7.03216,1451.4,1451.1,3.43383009]
[1673646456018,7.03216,1451.4,1451.2,3.43383009]
[1673646456019,0.1422,1451.4,1451.2,3.43383009]
[1673646456230,0.066,1451.6,1451.3,3.43383009]
[1673646456591,0.03,1452.0,1451.4,3.43383009]
[1673646456592,13.77524,1451.9,1451.4,3.43383009]
[1673646456907,13.77524,1451.9,1451.2,2.14335959]
[1673646456908,13.84124,1451.9,1451.5,3.43383009]
[1673646457073,14.5577445,1451.9,1451.5,3.43383009]
[1673646457517,14.5577445,1451.9,1451.4,0.06535959]
[1673646457717,14.5577445,1451.9,1451.4,3.43383009]
[1673646458065,0.7825045,1451.9,1451.5,3.43383009]
[1673646458281,7.06998968,1452.1,1451.6,3.43383009]
[1673646458442,7.06998968,1452.1,1451.4,2.4877426]
[1673646458443,0.24913968,1452.1,1451.7,3.43383009]
[1673646458643,0.18313968,1452.1,1451.8,3.43383009]
[1673646458899,7.06991968,1452.1,1451.8,3.43383009]
[1673646459236,7.06991968,1452.1,1451.7,0.06535959]
[1673646459237,14.02269968,1452.1,1451.7,0.06535959]
[1673646459442,7.13591968,1452.1,1451.8,3.43383009]
[1673646459754,14.02248968,1452.1,1451.8,3.43383009]
[1673646459962,14.02248968,1452.1,1451.7,0.06535959]
[1673646460273,14.73899418,1452.1,1451.7,3.43383009]
[1673646460580,14.03026017,1452.1,1451.6,0.06535959]
[1673646460796,20.66286,1451.9,1451.3,16.01405959]
[1673646460952,20.66286,1451.9,1451.3,19.44788968]
[1673646460953,13.84124,1451.9,1451.3,19.44788968]
[1673646461167,14.54980401,1451.9,1451.4,3.43383009]
[1673646461385,14.54980401,1451.9,1451.5,3.43383009]
[1673646461386,7.66218401,1451.9,1451.5,3.43383009]
[1673646461599,0.77456401,1451.9,1451.6,3.43383009]
[1673646461805,0.70856401,1451.9,1451.6,3.43383009]
[1673646462020,0.066,1452.0,1451.7,3.43383009]
[1673646462320,7.06998968,1452.1,1451.8,3.7772131]
[1673646462321,0.24913968,1452.1,1451.8,3.7772131]
[1673646462550,0.18313968,1452.1,1452.0,2.5]
[1673646462858,0.18313968,1452.1,1452.0,5.94151992]
[1673646463070,0.18313968,1452.1,1452.0,4.39687951]
[1673646463284,0.18313968,1452.1,1452.0,4.77120787]
[1673646464785,0.18313968,1452.1,1452.0,3.43383009]
[1673646465103,0.18313968,1452.1,1451.9,0.06535959]
[1673646465409,0.18313968,1452.1,1451.6,0.06535959]
[1673646465410,7.06995968,1452.1,1451.6,0.06535959]
[1673646465620,14.73134369,1452.1,1451.7,3.43383009]
[1673646465799,0.24913968,1452.1,1451.8,3.43383009]
[1673646465999,0.18313968,1452.1,1451.9,3.43383009]
[1673646466207,0.18313968,1452.1,1452.0,3.43383009]
[1673646467059,0.18313968,1452.1,1452.0,17.20793009]
[1673646467273,2.27602897,1452.6,1452.0,26.59728968]
[1673646467481,2.27602897,1452.6,1452.5,3.43383009]
[1673646467912,2.27602897,1452.6,1452.4,0.06535959]
[1673646468152,2.27602897,1452.6,1452.4,3.43383009]
[1673646468303,9.16033897,1452.6,1452.3,0.06535959]
[1673646468515,2.34202897,1452.6,1452.4,3.43383009]
[1673646468754,2.27602897,1452.6,1452.3,0.06535959]
[1673646468967,2.27602897,1452.6,1452.1,0.06535959]
[1673646468968,0.00794049,1452.5,1452.1,0.06535959]
[1673646469253,6.88515,1452.4,1452.1,3.43383009]
[1673646469513,0.066,1452.4,1452.1,3.43383009]
[1673646469687,0.07394049,1452.5,1452.2,3.43383009]
[1673646469892,1.02167671,1452.5,1452.2,3.43383009]
[1673646470101,6.88515,1452.4,1452.1,0.06535959]
[1673646470347,0.066,1452.4,1452.2,3.43383009]
[1673646470555,0.066,1452.6,1452.3,3.43383009]
[1673646470736,6.8842,1452.6,1452.3,3.43383009]
[1673646470941,0.066,1452.6,1452.4,3.43383009]
[1673646471152,0.066,1452.6,1452.2,6.95105959]
[1673646471153,0.066,1452.8,1452.5,3.43383009]
[1673646471473,6.88317,1452.9,1452.6,3.43383009]
[1673646471474,0.066,1452.9,1452.6,3.43383009]
[1673646471667,6.88249,1453.0,1452.7,3.43383009]
[1673646471668,0.066,1453.0,1452.7,3.43383009]
[1673646471881,16.38780448,1453.2,1452.7,3.43383009]
[1673646472119,15.92654988,1453.1,1452.7,3.43383009]
[1673646472340,14.85344544,1453.1,1452.7,3.43383009]
[1673646472553,6.88278,1452.9,1452.6,0.06535959]
[1673646472716,13.83156,1452.9,1452.3,0.06535959]
[1673646472922,1.4047825,1452.8,1452.1,0.06535959]
[1673646473136,13.76845,1452.6,1452.0,16.43445959]
[1673646473399,13.76845,1452.6,1452.0,0.06535959]
[1673646473400,15.81245,1452.6,1452.0,0.06535959]
[1673646473555,15.81245,1452.6,1451.7,2.5]
[1673646473556,20.65599,1452.4,1451.7,2.5]
[1673646473767,9.43061427,1452.4,1451.7,9.38812]
[1673646474020,0.066,1452.4,1451.8,13.77588]
[1673646474230,0.7165045,1452.5,1451.8,6.95323959]
[1673646474405,0.7165045,1452.5,1451.9,3.43383009]
[1673646474406,2.5,1452.3,1451.9,3.43383009]
[1673646474620,2.5,1452.3,1452.0,3.43383009]
[1673646474839,7.13654,1452.2,1451.9,0.06535959]
[1673646475077,7.20254,1452.2,1451.6,16.01755959]
[1673646475294,14.03908,1452.2,1451.7,3.43383009]
[1673646475445,16.27358,1452.1,1451.8,3.43383009]
[1673646475658,16.33958,1452.1,1451.8,3.18383009]
[1673646475918,16.18298605,1452.1,1451.8,3.18383009]
[1673646476124,13.83958,1452.1,1451.8,3.18383009]
[1673646476347,6.95259,1452.1,1451.8,3.18383009]
[1673646476652,13.83958,1452.1,1451.8,3.18383009]
[1673646477085,20.72657,1452.1,1451.7,0.06535959]
[1673646477274,20.72657,1452.1,1451.6,16.01755959]
[1673646477604,16.62168505,1452.1,1451.7,3.43383009]
[1673646477986,16.62168505,1452.1,1451.6,16.01755959]
[1673646478182,16.62168505,1452.1,1451.7,3.43383009]
[1673646478394,0.066,1452.1,1451.8,3.43383009]
[1673646478599,6.89420049,1452.2,1451.8,3.43383009]
[1673646478600,6.96012049,1452.2,1451.8,3.43383009]
[1673646479098,6.91012049,1452.2,1451.8,3.43383009]
[1673646479232,0.066,1452.2,1451.9,10.6644931]
[1673646479444,6.885,1452.5,1452.0,3.43383009]
[1673646479445,9.45073,1452.5,1452.0,3.43383009]
[1673646479662,9.45073,1452.5,1451.9,0.4087426]
[1673646479663,6.88523,1452.4,1451.9,0.4087426]
[1673646479872,13.83646,1452.4,1451.9,3.43383009]
[1673646480117,0.066,1452.4,1452.0,10.32077009]
[1673646480329,0.066,1452.6,1452.1,3.43383009]
[1673646480500,6.88422,1452.6,1452.2,3.43383009]
[1673646480719,6.95022,1452.6,1452.3,3.43383009]
[1673646480924,13.83444,1452.6,1452.2,0.06535959]
[1673646481136,16.156296,1452.6,1452.0,2.15135959]
[1673646481386,16.156296,1452.6,1452.1,3.43383009]
[1673646481387,9.272076,1452.6,1452.1,3.43383009]
[1673646481604,9.272076,1452.6,1452.0,9.38671]
[1673646481605,9.272056,1452.6,1452.2,3.43383009]
[1673646481929,16.156256,1452.6,1452.2,3.43383009]
[1673646482070,0.066,1452.6,1452.3,3.43383009]
[1673646482280,6.8842,1452.6,1452.3,3.43383009]
[1673646482524,13.83454,1452.6,1452.3,3.43383009]
[1673646482752,0.066,1452.6,1452.4,10.31856009]
[1673646482954,6.94895,1452.9,1452.4,11.41577569]
[1673646483127,6.94895,1452.9,1452.5,3.43383009]
[1673646483128,13.83203,1452.9,1452.5,3.43383009]
[1673646483347,2.5,1452.8,1452.5,3.43383009]
[1673646483591,2.5,1452.8,1452.4,6.95008959]
[1673646483592,2.5,1452.8,1452.4,0.06535959]
[1673646483778,0.25,1452.7,1452.4,3.43383009]
[1673646484009,13.76754,1452.7,1452.4,3.43383009]
[1673646484327,13.76754,1452.7,1452.3,0.06535959]
[1673646484328,0.70856401,1452.6,1452.3,0.06535959]
[1673646484537,0.70856401,1452.6,1452.1,15.49565959]
[1673646484538,14.47716401,1452.6,1452.1,15.49565959]
[1673646484750,0.066,1452.6,1452.2,10.31983009]
[1673646484926,13.76863,1452.6,1452.2,3.49918968]
[1673646485115,15.2888694,1452.6,1452.1,0.06535959]
[1673646485330,2.5,1452.5,1451.9,2.0]
[1673646485573,16.26976,1452.5,1452.1,3.43383009]
[1673646485853,0.70856401,1452.4,1452.0,0.06535959]
[1673646486057,13.77144,1452.3,1451.7,15.49565959]
[1673646486322,13.77144,1452.3,1451.7,0.06535959]
[1673646486323,2.5,1452.2,1451.7,0.06535959]
[1673646486641,14.02378,1452.1,1451.4,23.29605959]
[1673646486803,16.07678,1452.1,1451.4,16.40655959]
[1673646487015,3.43383009,1452.0,1451.4,0.064]
[1673646487330,3.43383009,1452.0,1451.2,0.05455052]
[1673646487331,20.66368,1451.9,1451.2,0.05455052]
[1673646487535,20.66368,1451.9,1451.2,0.99910357]
[1673646487536,13.84178,1451.9,1451.2,0.99910357]
[1673646487767,13.84178,1451.9,1451.2,13.01323763]
[1673646487959,13.84178,1451.9,1451.2,0.11991011]
[1673646487960,17.27561009,1451.9,1451.2,0.11991011]
[1673646488213,0.70856401,1451.8,1451.2,0.05455052]
[1673646488414,30.98918009,1451.7,1451.2,0.05455052]
[1673646488741,27.55804,1451.5,1451.2,0.05455052]
[1673646488896,20.67111,1451.3,1451.2,0.05455052]
[1673646489106,20.73711,1451.3,1451.2,0.05455052]
[1673646489368,0.066,1451.3,1451.2,0.05455052]
[1673646489530,6.89037,1451.3,1451.2,0.05455052]
[1673646489740,0.066,1451.3,1451.2,0.05455052]
[1673646489993,0.066,1451.4,1451.2,0.05455052]
[1673646490209,0.066,1451.5,1451.2,3.48838061]
[1673646490377,13.77902,1451.5,1451.2,0.05455052]
[1673646490591,14.540541,1451.5,1451.2,0.05455052]
[1673646491365,14.540541,1451.5,1450.9,4.572]
[1673646491366,7.651031,1451.5,1450.9,16.34960959]
[1673646491574,14.540451,1451.5,1451.0,3.43383009]
[1673646491957,15.24901501,1451.5,1450.9,0.06535959]
[1673646492168,17.23601501,1451.5,1450.6,18.13365959]
[1673646492371,5.93383009,1451.4,1450.7,0.02202054]
[1673646492598,20.67267,1451.2,1450.8,3.43383009]
[1673646492810,13.84778,1451.2,1450.8,3.43383009]
[1673646493537,6.95689,1451.2,1450.8,3.43383009]
[1673646493731,16.34773,1451.2,1450.7,0.08738013]
[1673646493975,6.89189,1451.0,1450.7,0.02202054]
[1673646494191,0.066,1451.0,1450.7,3.45585063]
[1673646494377,0.066,1451.2,1450.7,0.02202054]
[1673646494592,7.55013301,1451.3,1450.7,0.02202054]
[1673646494784,6.89152,1451.1,1450.7,0.02202054]
[1673646494994,13.84928,1451.1,1450.7,0.02202054]
[1673646496046,2.5,1451.0,1450.7,0.02202054]
[1673646496310,6.89184,1451.0,1450.7,3.52202054]
[1673646496496,6.95784,1451.0,1450.7,3.52202054]
[1673646496673,0.066,1451.0,1450.8,10.32629009]
[1673646496886,6.89055,1451.3,1450.8,3.49918968]
[1673646496887,6.8916,1451.1,1450.8,3.49918968]
[1673646497097,13.8492,1451.1,1450.7,3.94611814]
[1673646497354,9.031608,1451.1,1450.7,3.52202054]
[1673646497546,0.066,1451.1,1450.7,13.84898063]
[1673646497761,6.89132,1451.1,1450.7,3.58738013]
[1673646497932,0.066,1451.1,1450.7,3.52202054]
[1673646498149,13.8481,1451.2,1450.7,10.41511054]
[1673646498400,6.95688,1451.2,1450.7,7.02121022]
[1673646498614,13.8481,1451.2,1450.7,7.02121022]
[1673646498835,15.48286,1451.2,1450.7,3.58738013]
[1673646499144,15.48286,1451.2,1450.7,3.52202054]
[1673646499332,25.80791009,1451.2,1450.7,3.52202054]
[1673646499511,22.37408,1451.2,1450.7,3.52202054]
[1673646499723,2.237408,1451.1,1450.7,3.5]
[1673646499977,10.58264,1451.2,1450.7,3.5]
[1673646500193,13.78371,1451.0,1450.7,3.5]
[1673646500508,13.84971,1451.0,1450.7,3.5]
[1673646501135,6.95779,1451.0,1450.7,3.5]
[1673646501346,20.74137,1451.0,1450.7,3.5]
[1673646502185,0.066,1451.0,1450.8,3.43383009]
[1673646502346,6.95599,1451.4,1450.9,17.21837009]
[1673646502559,13.84625,1451.4,1451.0,3.43383009]
[1673646502824,0.066,1451.4,1451.1,3.43383009]
[1673646502996,13.7801,1451.4,1451.0,3.49918968]
[1673646503204,13.7801,1451.4,1450.8,16.13262308]
[1673646503205,13.84578,1451.4,1450.9,0.06535959]
[1673646503400,13.84578,1451.4,1450.8,0.06535959]
[1673646503401,1.384578,1451.3,1450.8,0.06535959]
[1673646503611,13.84612,1451.4,1450.9,3.43383009]
[1673646503821,0.066,1451.4,1451.0,3.43383009]
[1673646504089,6.88911,1451.6,1451.1,3.43383009]
[1673646504090,6.88945,1451.5,1451.1,3.43383009]
[1673646504278,6.88945,1451.5,1451.2,3.43383009]
[1673646504279,0.066,1451.5,1451.2,3.43383009]
[1673646504467,2.55860448,1452.1,1451.3,24.10494009]
[1673646504468,6.95301,1452.1,1451.3,24.10494009]
[1673646504821,15.26102387,1452.1,1451.4,12.7341141]
[1673646505032,15.26102387,1452.1,1451.4,2.4758536]
[1673646505186,15.26102387,1452.1,1451.3,0.06535959]
[1673646505187,13.77608,1451.8,1451.3,0.06535959]
[1673646505396,13.77608,1451.8,1451.3,3.43383009]
[1673646505397,6.95404,1451.8,1451.3,3.43383009]
[1673646505867,0.066,1451.8,1451.4,3.44692377]
[1673646506077,6.95372,1451.9,1451.4,3.79161615]
[1673646506294,0.066,1451.9,1451.5,5.93383009]
[1673646506606,0.066,1452.2,1451.6,6.90194188]
[1673646506919,6.88633,1452.2,1451.6,5.49129972]
[1673646507082,6.95233,1452.2,1451.6,5.39129972]
[1673646507294,0.066,1452.2,1451.6,12.28015972]
[1673646507553,6.95175,1452.3,1451.6,19.16910972]
[1673646507714,1.89683945,1452.3,1451.7,4.27486616]
[1673646507927,9.44376448,1452.4,1451.8,3.43383009]
[1673646507928,7.97477544,1452.4,1451.8,3.43383009]
[1673646508130,0.066,1452.4,1452.0,2.5]
[1673646508342,12.00872448,1452.7,1452.1,3.43383009]
[1673646508652,2.5,1452.6,1452.0,3.1587426]
[1673646508884,6.88488,1452.5,1452.0,6.5272131]
[1673646509090,6.88488,1452.5,1452.1,3.43383009]
[1673646509091,0.066,1452.5,1452.1,3.43383009]
[1673646509332,1.79799945,1452.8,1452.3,13.77085]
[1673646509655,1.02343544,1452.8,1452.4,3.38383009]
[1673646509811,1.2198406,1452.9,1452.4,3.38383009]
[1673646510016,1.73199945,1452.8,1452.3,0.06535959]
[1673646510231,2.5,1452.7,1452.1,15.93078959]
[1673646510483,8.68156945,1452.8,1452.2,3.43383009]
[1673646510694,0.01309188,1452.7,1452.2,2.93383009]
[1673646510910,10.10546589,1452.7,1452.2,2.93383009]
[1673646511226,3.28765589,1452.7,1452.2,2.93383009]
[1673646511382,0.72165589,1452.7,1452.2,2.93383009]
[1673646511594,2.06782639,1452.7,1452.2,2.93383009]
[1673646511834,8.95158639,1452.7,1452.2,5.43383009]
[1673646512061,9.01758639,1452.7,1452.2,2.99918968]
[1673646512277,9.01758639,1452.7,1452.1,6.95150959]
[1673646512496,8.30902238,1452.7,1452.2,2.5]
[1673646512803,9.33245782,1452.7,1452.1,3.49918968]
[1673646512959,7.81746578,1452.6,1452.1,3.43383009]
[1673646513175,0.066,1452.6,1452.2,3.43594547]
[1673646513383,1.02343544,1452.7,1452.3,3.43383009]
[1673646513631,1.02343544,1452.7,1452.2,0.00211538]
[1673646513632,1.02343544,1452.7,1452.2,6.95129959]
[1673646513799,2.16101546,1452.7,1452.3,5.93383009]
[1673646514007,2.16101546,1452.7,1452.3,5.99918968]
[1673646514268,2.16101546,1452.7,1452.4,3.43383009]
[1673646514494,1.60116904,1452.8,1452.5,10.31843009]
[1673646514495,0.066,1452.8,1452.5,10.31843009]
[1673646514810,1.2198406,1452.9,1452.5,11.22482575]
[1673646515164,0.19640516,1452.9,1452.6,3.43383009]
[1673646515534,0.19640516,1452.9,1452.7,17.20129009]
[1673646515849,0.19640516,1452.9,1452.7,14.53372771]
[1673646516014,0.19640516,1452.9,1452.7,0.06535959]
[1673646516216,0.19640516,1452.9,1452.5,12.53491959]
[1673646516467,0.19640516,1452.9,1452.5,19.41959959]
[1673646516667,0.19640516,1452.9,1452.6,3.43383009]
[1673646517116,0.19640516,1452.9,1452.7,17.20129009]
[1673646517437,0.19640516,1452.9,1452.7,17.26655968]
[1673646517743,0.19640516,1452.9,1452.8,3.43383009]
[1673646518046,0.19640516,1452.9,1452.8,10.31708009]
[1673646518260,0.19640516,1452.9,1452.8,10.38243968]
[1673646518498,1.53516904,1453.3,1452.9,2.196]
[1673646518822,5.27545811,1453.4,1453.2,26.06819009]
[1673646518823,0.066,1453.4,1453.2,26.06819009]
[1673646518973,1.0216351,1453.6,1453.3,3.43383009]
[1673646519188,2.55680414,1453.7,1453.3,10.31458009]
[1673646519433,2.55680414,1453.7,1453.4,3.43383009]
[1673646519434,1.0216351,1453.7,1453.4,3.43383009]
[1673646519708,1.0216351,1453.7,1453.3,13.82699959]
[1673646519709,0.066,1453.8,1453.5,24.07365009]
[1673646519919,1.0216351,1453.9,1453.6,3.43383009]
[1673646520167,1.74123503,1454.0,1453.7,17.19181009]
[1673646520168,0.20606599,1454.0,1453.7,17.19181009]
[1673646520356,0.20606599,1454.0,1453.8,3.43383009]
[1673646520569,0.20606599,1454.0,1453.8,6.87851]
[1673646520757,0.20606599,1454.0,1453.8,17.25621968]
[1673646520969,0.20606599,1454.0,1453.8,0.06535959]
[1673646521196,0.20606599,1454.0,1453.7,13.61496579]
[1673646521438,0.20606599,1454.0,1453.8,3.43383009]
[1673646521809,0.20606599,1454.0,1453.9,3.43383009]
[1673646522020,0.20606599,1454.0,1453.9,19.68993009]
[1673646522268,0.20606599,1454.0,1453.9,12.87723968]
[1673646522481,0.20606599,1454.0,1453.9,11.59096825]
[1673646522695,0.20606599,1454.0,1453.9,3.49918968]